[Event "Titled Tuesday Blitz March 08 Early 2022"]
[White "Kuderinov, Kirill"]
[Black "Horak, Martin"]
[WhiteFideId "13701568"]
[BlackFideId "367095"]
[WhiteElo "2432"]
[BlackElo "1997"]
[Result "1-0"]
[Round "08"]
[TimeControl "180+1"]
[Date "2022.03.09"]
[WhiteClock "0:01:06"]
[BlackClock "0:00:03"]

1. e4 {[%clk 0:02:58]}  e5 {[%clk 0:02:58]} 2. Nf3 {[%clk 0:02:57]}  Nc6 {[%clk 0:02:58]} 3. Bc4 {[%clk 0:02:57]}  Nf6 {[%clk 0:02:58]} 4. d3 {[%clk 0:02:57]}  Be7 {[%clk 0:02:58]} 5. O-O {[%clk 0:02:55]}  O-O {[%clk 0:02:57]} 6. Re1 {[%clk 0:02:52]}  d6 {[%clk 0:02:57]} 7. c3 {[%clk 0:02:49]}  Na5 {[%clk 0:02:57]} 8. Bb5 {[%clk 0:02:48]}  a6 {[%clk 0:02:57]} 9. Ba4 {[%clk 0:02:49]}  b5 {[%clk 0:02:57]} 10. Bc2 {[%clk 0:02:49]}  c5 {[%clk 0:02:58]} 11. Nbd2 {[%clk 0:02:49]}  Nc6 {[%clk 0:02:57]} 12. Nf1 {[%clk 0:02:48]}  h6 {[%clk 0:02:55]} 13. h3 {[%clk 0:02:43]}  Re8 {[%clk 0:02:54]} 14. Ng3 {[%clk 0:02:42]}  Bf8 {[%clk 0:02:52]} 15. a3 {[%clk 0:02:39]}  d5 {[%clk 0:02:38]} 16. b4 {[%clk 0:02:18]}  dxe4 {[%clk 0:02:30]} 17. dxe4 {[%clk 0:02:18]}  Be6 {[%clk 0:02:04]} 18. Be3 {[%clk 0:02:11]}  Nd7 {[%clk 0:01:20]} 19. Nf5 {[%clk 0:02:05]}  Nb6 {[%clk 0:01:07]} 20. Nd2 {[%clk 0:01:54]}  Kh7 {[%clk 0:00:40]} 21. Qf3 {[%clk 0:01:44]}  g6 {[%clk 0:00:40]} 22. Red1 {[%clk 0:01:40]}  Qf6 {[%clk 0:00:26]} 23. Nf1 {[%clk 0:01:29]}  Rad8 {[%clk 0:00:12]} 24. N1g3 {[%clk 0:01:26]}  gxf5 {[%clk 0:00:11]} 25. exf5 {[%clk 0:01:25]}  Bd5 {[%clk 0:00:11]} 26. Qg4 {[%clk 0:01:16]}  Nc4 {[%clk 0:00:09]} 27. Nh5 {[%clk 0:01:15]}  Qh8 {[%clk 0:00:08]} 28. Rxd5 {[%clk 0:01:08]}  f6 {[%clk 0:00:03]} 29. Qg6# {[%clk 0:01:06]} 1-0


[Site "https://www.chess.com"]

[Event "Titled Tuesday Blitz March 08 Early 2022"]
[White "Lazavik, Denis"]
[Black "Bryakin, Mikhail"]
[WhiteFideId "13515110"]
[BlackFideId "4165314"]
[WhiteElo "2437"]
[BlackElo "2417"]
[Result "1-0"]
[Round "08"]
[TimeControl "180+1"]
[Date "2022.03.08"]
[WhiteClock "0:02:30"]
[BlackClock "0:02:13"]

1. d4 {[%clk 0:03:00]}  Nf6 {[%clk 0:02:58]} 2. c4 {[%clk 0:03:00]}  c5 {[%clk 0:02:54]} 3. d5 {[%clk 0:03:01]}  e6 {[%clk 0:02:54]} 4. Nc3 {[%clk 0:03:01]}  exd5 {[%clk 0:02:52]} 5. cxd5 {[%clk 0:03:02]}  Bd6 {[%clk 0:02:52]} 6. Nf3 {[%clk 0:02:59]}  O-O {[%clk 0:02:51]} 7. e4 {[%clk 0:02:59]}  Re8 {[%clk 0:02:52]} 8. Bd3 {[%clk 0:02:57]}  a6 {[%clk 0:02:42]} 9. Bc2 {[%clk 0:02:37]}  b5 {[%clk 0:02:41]} 10. O-O {[%clk 0:02:37]}  Bc7 {[%clk 0:02:40]} 11. d6 {[%clk 0:02:37]}  Ba5 {[%clk 0:02:39]} 12. e5 {[%clk 0:02:37]}  Ng4 {[%clk 0:02:30]} 13. Bxh7+ {[%clk 0:02:35]}  Kxh7 {[%clk 0:02:31]} 14. Ng5+ {[%clk 0:02:35]}  Kg8 {[%clk 0:02:28]} 15. Qxg4 {[%clk 0:02:35]}  Rxe5 {[%clk 0:02:25]} 16. Qh5 {[%clk 0:02:33]}  Rxg5 {[%clk 0:02:23]} 17. Bxg5 {[%clk 0:02:34]}  Qf8 {[%clk 0:02:16]} 18. Be7 {[%clk 0:02:33]}  Qe8 {[%clk 0:02:16]} 19. Nd5 {[%clk 0:02:33]}  Bb7 {[%clk 0:02:13]} 20. Nf6+ {[%clk 0:02:30]} 1-0


[Site "https://www.chess.com"]

[Event "Titled Tuesday Blitz March 08 Early 2022"]
[White "Leve, Nitai"]
[Black "Osmonbekov, Talaibek"]
[WhiteFideId "2006898"]
[BlackFideId "2017253"]
[WhiteElo "2144"]
[BlackElo "2135"]
[Result "1-0"]
[Round "08"]
[TimeControl "180+1"]
[Date "2022.03.09"]
[WhiteClock "0:00:43"]
[BlackClock "0:00:17"]

1. e4 {[%clk 0:03:00]}  c5 {[%clk 0:02:59]} 2. Nf3 {[%clk 0:02:59]}  d6 {[%clk 0:03:00]} 3. d4 {[%clk 0:02:57]}  cxd4 {[%clk 0:03:01]} 4. Qxd4 {[%clk 0:02:57]}  a6 {[%clk 0:02:56]} 5. c4 {[%clk 0:02:57]}  Nc6 {[%clk 0:02:56]} 6. Qe3 {[%clk 0:02:57]}  g6 {[%clk 0:02:55]} 7. h3 {[%clk 0:02:57]}  Bg7 {[%clk 0:02:55]} 8. Be2 {[%clk 0:02:57]}  Nf6 {[%clk 0:02:55]} 9. O-O {[%clk 0:02:57]}  O-O {[%clk 0:02:56]} 10. Rd1 {[%clk 0:02:56]}  Nd7 {[%clk 0:02:54]} 11. Nc3 {[%clk 0:02:56]}  b6 {[%clk 0:02:43]} 12. b3 {[%clk 0:02:43]}  Bb7 {[%clk 0:02:36]} 13. Bb2 {[%clk 0:02:43]}  a5 {[%clk 0:02:30]} 14. Rab1 {[%clk 0:02:40]}  Nc5 {[%clk 0:02:26]} 15. Nd5 {[%clk 0:02:38]}  Bxb2 {[%clk 0:02:14]} 16. Rxb2 {[%clk 0:02:38]}  Nb4 {[%clk 0:01:59]} 17. Qh6 {[%clk 0:02:24]}  f6 {[%clk 0:01:48]} 18. Nxb4 {[%clk 0:02:13]}  axb4 {[%clk 0:01:46]} 19. e5 {[%clk 0:02:13]}  Qc7 {[%clk 0:01:26]} 20. exd6 {[%clk 0:02:10]}  exd6 {[%clk 0:01:25]} 21. Rbd2 {[%clk 0:02:10]}  Ne4 {[%clk 0:01:18]} 22. Nd4 {[%clk 0:01:58]}  Nxd2 {[%clk 0:01:04]} 23. Rxd2 {[%clk 0:01:37]}  Rfe8 {[%clk 0:00:57]} 24. Bg4 {[%clk 0:01:33]}  f5 {[%clk 0:00:53]} 25. Bxf5 {[%clk 0:01:24]}  Re1+ {[%clk 0:00:43]} 26. Kh2 {[%clk 0:01:24]}  d5+ {[%clk 0:00:43]} 27. f4 {[%clk 0:01:24]}  gxf5 {[%clk 0:00:39]} 28. Nxf5 {[%clk 0:01:24]}  Rf8 {[%clk 0:00:33]} 29. Qg5+ {[%clk 0:01:14]}  Kh8 {[%clk 0:00:32]} 30. cxd5 {[%clk 0:01:13]}  Qf7 {[%clk 0:00:24]} 31. g4 {[%clk 0:01:08]}  Bxd5 {[%clk 0:00:20]} 32. Rxd5 {[%clk 0:01:08]}  Re2+ {[%clk 0:00:19]} 33. Kg3 {[%clk 0:01:05]}  Rg2+ {[%clk 0:00:18]} 34. Kh4 {[%clk 0:00:43]}  Rg8 {[%clk 0:00:17]} 35. Rd8 {[%clk 0:00:43]} 1-0


[Site "https://www.chess.com"]

[Event "Titled Tuesday Blitz March 08 Early 2022"]
[White "Liyanage, Ranindu Dilshan"]
[Black "Vivas Zamora, Fabian Ernesto"]
[WhiteFideId "9915834"]
[BlackFideId "3902480"]
[WhiteElo "1858"]
[BlackElo "1966"]
[Result "1-0"]
[Round "08"]
[TimeControl "180+1"]
[Date "2022.03.09"]
[WhiteClock "0:00:05"]
[BlackClock "0:00:02"]

1. d4 {[%clk 0:02:58]}  Nf6 {[%clk 0:02:59]} 2. c4 {[%clk 0:02:58]}  g6 {[%clk 0:02:57]} 3. Nc3 {[%clk 0:02:56]}  d5 {[%clk 0:02:56]} 4. cxd5 {[%clk 0:02:56]}  Nxd5 {[%clk 0:02:57]} 5. e4 {[%clk 0:02:56]}  Nxc3 {[%clk 0:02:57]} 6. bxc3 {[%clk 0:02:57]}  Bg7 {[%clk 0:02:58]} 7. Bc4 {[%clk 0:02:56]}  c5 {[%clk 0:02:58]} 8. Ne2 {[%clk 0:02:56]}  Nc6 {[%clk 0:02:56]} 9. h4 {[%clk 0:02:56]}  cxd4 {[%clk 0:02:42]} 10. cxd4 {[%clk 0:02:54]}  Nxd4 {[%clk 0:02:35]} 11. Rb1 {[%clk 0:02:11]}  Bg4 {[%clk 0:02:00]} 12. f3 {[%clk 0:02:03]}  Nxf3+ {[%clk 0:01:48]} 13. gxf3 {[%clk 0:02:02]}  Qxd1+ {[%clk 0:01:47]} 14. Kxd1 {[%clk 0:02:02]}  O-O-O+ {[%clk 0:01:47]} 15. Ke1 {[%clk 0:01:57]}  Bxf3 {[%clk 0:01:46]} 16. Rf1 {[%clk 0:01:58]}  Bxe4 {[%clk 0:01:46]} 17. Rb3 {[%clk 0:01:45]}  f5 {[%clk 0:01:26]} 18. Bg5 {[%clk 0:01:31]}  Bf6 {[%clk 0:00:33]} 19. Bxf6 {[%clk 0:01:22]}  exf6 {[%clk 0:00:33]} 20. Kf2 {[%clk 0:01:23]}  Rd2 {[%clk 0:00:30]} 21. Ke3 {[%clk 0:01:12]}  Rxa2 {[%clk 0:00:27]} 22. Rc3 {[%clk 0:01:12]}  Rc2 {[%clk 0:00:19]} 23. Be6+ {[%clk 0:01:10]}  Kb8 {[%clk 0:00:14]} 24. Rb3 {[%clk 0:01:09]}  Re8 {[%clk 0:00:12]} 25. Nd4 {[%clk 0:00:50]}  Bd5 {[%clk 0:00:12]} 26. Rfb1 {[%clk 0:00:26]}  Bxe6 {[%clk 0:00:11]} 27. Rxb7+ {[%clk 0:00:22]}  Ka8 {[%clk 0:00:08]} 28. Kd3 {[%clk 0:00:13]}  Rcc8 {[%clk 0:00:02]} 29. Rxh7 {[%clk 0:00:13]}  Bc4+ {[%clk 0:00:02]} 30. Kd2 {[%clk 0:00:14]}  Red8 {[%clk 0:00:01]} 31. Ke3 {[%clk 0:00:13]}  Re8+ {[%clk 0:00:02]} 32. Kf2 {[%clk 0:00:13]}  Rb8 {[%clk 0:00:02]} 33. Ra1 {[%clk 0:00:13]}  Rb7 {[%clk 0:00:02]} 34. Rh6 {[%clk 0:00:12]}  f4 {[%clk 0:00:01]} 35. Rxg6 {[%clk 0:00:11]}  Rd8 {[%clk 0:00:02]} 36. Nf3 {[%clk 0:00:11]}  Rb2+ {[%clk 0:00:02]} 37. Kg1 {[%clk 0:00:10]}  Bd5 {[%clk 0:00:02]} 38. Ne1 {[%clk 0:00:05]} 1-0


[Site "https://www.chess.com"]

[Event "Titled Tuesday Blitz March 08 Early 2022"]
[White "Manelyuk, Daniil"]
[Black "Derige Kane, Yan"]
[WhiteFideId "44173920"]
[BlackFideId "20665431"]
[WhiteElo "2222"]
[BlackElo "2169"]
[Result "1-0"]
[Round "08"]
[TimeControl "180+1"]
[Date "2022.03.09"]
[WhiteClock "0:00:47"]
[BlackClock "0:01:08"]

1. e4 {[%clk 0:03:00]}  d5 {[%clk 0:02:47]} 2. exd5 {[%clk 0:02:59]}  c6 {[%clk 0:02:47]} 3. d6 {[%clk 0:02:57]}  exd6 {[%clk 0:02:47]} 4. Nf3 {[%clk 0:02:56]}  d5 {[%clk 0:02:47]} 5. d4 {[%clk 0:02:56]}  Bd6 {[%clk 0:02:48]} 6. Bd3 {[%clk 0:02:53]}  Ne7 {[%clk 0:02:48]} 7. O-O {[%clk 0:02:53]}  Nd7 {[%clk 0:02:47]} 8. h3 {[%clk 0:02:51]}  O-O {[%clk 0:02:44]} 9. c3 {[%clk 0:02:50]}  Ng6 {[%clk 0:02:42]} 10. Bg5 {[%clk 0:02:49]}  Qc7 {[%clk 0:02:41]} 11. Qc2 {[%clk 0:02:45]}  Re8 {[%clk 0:02:33]} 12. Nbd2 {[%clk 0:02:44]}  Ndf8 {[%clk 0:02:33]} 13. Rae1 {[%clk 0:02:42]}  Bd7 {[%clk 0:02:33]} 14. Nb3 {[%clk 0:02:18]}  Ne6 {[%clk 0:02:32]} 15. Bd2 {[%clk 0:02:15]}  a5 {[%clk 0:02:32]} 16. a4 {[%clk 0:02:12]}  Nef4 {[%clk 0:02:32]} 17. Bxf4 {[%clk 0:02:09]}  Bxf4 {[%clk 0:02:33]} 18. Nc5 {[%clk 0:02:08]}  b6 {[%clk 0:02:28]} 19. Nxd7 {[%clk 0:01:57]}  Qxd7 {[%clk 0:02:29]} 20. Bxg6 {[%clk 0:01:57]}  hxg6 {[%clk 0:02:29]} 21. Ne5 {[%clk 0:01:57]}  Qd6 {[%clk 0:02:27]} 22. Nd3 {[%clk 0:01:50]}  Bg5 {[%clk 0:02:19]} 23. Re2 {[%clk 0:01:39]}  Re4 {[%clk 0:02:14]} 24. Rfe1 {[%clk 0:01:30]}  Rae8 {[%clk 0:02:12]} 25. Ne5 {[%clk 0:01:26]}  Rxe2 {[%clk 0:02:03]} 26. Rxe2 {[%clk 0:01:26]}  Qe6 {[%clk 0:02:03]} 27. Kf1 {[%clk 0:01:18]}  c5 {[%clk 0:01:48]} 28. dxc5 {[%clk 0:01:09]}  bxc5 {[%clk 0:01:49]} 29. Nd3 {[%clk 0:01:08]}  Qxe2+ {[%clk 0:01:40]} 30. Qxe2 {[%clk 0:01:08]}  Rxe2 {[%clk 0:01:40]} 31. Kxe2 {[%clk 0:01:09]}  c4 {[%clk 0:01:41]} 32. Ne5 {[%clk 0:01:06]}  Bc1 {[%clk 0:01:39]} 33. Nc6 {[%clk 0:01:05]}  Bxb2 {[%clk 0:01:40]} 34. Kd2 {[%clk 0:01:03]}  Kf8 {[%clk 0:01:35]} 35. Nxa5 {[%clk 0:01:02]}  d4 {[%clk 0:01:32]} 36. Nxc4 {[%clk 0:01:00]}  Bxc3+ {[%clk 0:01:29]} 37. Kd3 {[%clk 0:01:00]}  Ke8 {[%clk 0:01:26]} 38. Ne5 {[%clk 0:00:59]}  g5 {[%clk 0:01:16]} 39. Nf3 {[%clk 0:00:58]}  f6 {[%clk 0:01:16]} 40. Nxd4 {[%clk 0:00:58]}  Be1 {[%clk 0:01:17]} 41. f3 {[%clk 0:00:57]}  Kd7 {[%clk 0:01:17]} 42. Ke4 {[%clk 0:00:56]}  g6 {[%clk 0:01:17]} 43. Kd5 {[%clk 0:00:57]}  Bf2 {[%clk 0:01:14]} 44. Ne6 {[%clk 0:00:56]}  Be3 {[%clk 0:01:12]} 45. a5 {[%clk 0:00:50]}  f5 {[%clk 0:01:09]} 46. Nf8+ {[%clk 0:00:49]}  Ke7 {[%clk 0:01:09]} 47. Nxg6+ {[%clk 0:00:49]}  Kf6 {[%clk 0:01:10]} 48. Ne5 {[%clk 0:00:49]}  g4 {[%clk 0:01:07]} 49. hxg4 {[%clk 0:00:49]}  Kg5 {[%clk 0:01:07]} 50. gxf5 {[%clk 0:00:49]}  Kxf5 {[%clk 0:01:08]} 51. a6 {[%clk 0:00:47]} 1-0


[Site "https://www.chess.com"]

[Event "Titled Tuesday Blitz March 08 Early 2022"]
[White "Manukian, Artak"]
[Black "Rustemov, Alexander"]
[WhiteFideId "13301373"]
[BlackFideId "4119002"]
[WhiteElo "2513"]
[BlackElo "2758"]
[Result "0-1"]
[Round "08"]
[TimeControl "180+1"]
[Date "2022.03.09"]
[WhiteClock "0:00:51"]
[BlackClock "0:00:45"]

1. e4 {[%clk 0:03:00]}  e6 {[%clk 0:02:48]} 2. d4 {[%clk 0:03:00]}  d5 {[%clk 0:02:48]} 3. e5 {[%clk 0:03:00]}  c5 {[%clk 0:02:48]} 4. c3 {[%clk 0:03:01]}  Qb6 {[%clk 0:02:48]} 5. Nf3 {[%clk 0:03:00]}  Bd7 {[%clk 0:02:48]} 6. a3 {[%clk 0:03:00]}  Bb5 {[%clk 0:02:42]} 7. c4 {[%clk 0:02:59]}  Bxc4 {[%clk 0:02:41]} 8. Bxc4 {[%clk 0:02:59]}  dxc4 {[%clk 0:02:42]} 9. Nbd2 {[%clk 0:02:53]}  Qa6 {[%clk 0:02:32]} 10. Qe2 {[%clk 0:02:43]}  c3 {[%clk 0:02:31]} 11. bxc3 {[%clk 0:02:42]}  Qxe2+ {[%clk 0:02:30]} 12. Kxe2 {[%clk 0:02:43]}  cxd4 {[%clk 0:02:30]} 13. cxd4 {[%clk 0:02:41]}  Ne7 {[%clk 0:02:29]} 14. Nc4 {[%clk 0:02:28]}  Nd5 {[%clk 0:02:29]} 15. Ne3 {[%clk 0:02:23]}  Nf4+ {[%clk 0:02:20]} 16. Kd1 {[%clk 0:02:17]}  Nc6 {[%clk 0:02:13]} 17. g3 {[%clk 0:02:17]}  Ng6 {[%clk 0:02:10]} 18. Ke2 {[%clk 0:02:05]}  Rd8 {[%clk 0:02:06]} 19. Bb2 {[%clk 0:02:05]}  Nge7 {[%clk 0:02:01]} 20. Rhd1 {[%clk 0:02:00]}  Nd5 {[%clk 0:01:59]} 21. Ng5 {[%clk 0:01:47]}  Be7 {[%clk 0:01:50]} 22. Ne4 {[%clk 0:01:46]}  O-O {[%clk 0:01:45]} 23. Nxd5 {[%clk 0:01:45]}  Rxd5 {[%clk 0:01:45]} 24. Nc3 {[%clk 0:01:45]}  Rxd4 {[%clk 0:01:45]} 25. Rxd4 {[%clk 0:01:43]}  Nxd4+ {[%clk 0:01:44]} 26. Kd3 {[%clk 0:01:43]}  Rd8 {[%clk 0:01:40]} 27. Ke4 {[%clk 0:01:42]}  Nb3 {[%clk 0:01:35]} 28. Rd1 {[%clk 0:01:41]}  Rxd1 {[%clk 0:01:26]} 29. Nxd1 {[%clk 0:01:42]}  Kf8 {[%clk 0:01:17]} 30. f4 {[%clk 0:01:40]}  g6 {[%clk 0:01:15]} 31. g4 {[%clk 0:01:39]}  Ke8 {[%clk 0:01:13]} 32. Ne3 {[%clk 0:01:38]}  Nc5+ {[%clk 0:01:06]} 33. Kd4 {[%clk 0:01:34]}  Na4 {[%clk 0:01:06]} 34. Bc1 {[%clk 0:01:33]}  Bc5+ {[%clk 0:01:06]} 35. Ke4 {[%clk 0:01:33]}  Bxe3 {[%clk 0:01:03]} 36. Bxe3 {[%clk 0:01:33]}  a6 {[%clk 0:01:02]} 37. Bd4 {[%clk 0:01:30]}  b6 {[%clk 0:00:59]} 38. f5 {[%clk 0:01:29]}  Kd7 {[%clk 0:00:57]} 39. fxg6 {[%clk 0:01:16]}  fxg6 {[%clk 0:00:56]} 40. h4 {[%clk 0:01:16]}  Nc5+ {[%clk 0:00:54]} 41. Bxc5 {[%clk 0:01:07]}  bxc5 {[%clk 0:00:54]} 42. Kd3 {[%clk 0:01:08]}  Kc6 {[%clk 0:00:51]} 43. Kc4 {[%clk 0:01:08]}  h6 {[%clk 0:00:50]} 44. a4 {[%clk 0:00:51]}  a5 {[%clk 0:00:46]} 45. g5 {[%clk 0:00:51]}  h5 {[%clk 0:00:45]} 0-1


[Site "https://www.chess.com"]

[Event "Titled Tuesday Blitz March 08 Early 2022"]
[White "Matinian, Nikita"]
[Black "Svane, Rasmus"]
[WhiteFideId "24129100"]
[BlackFideId "4657101"]
[WhiteElo "2422"]
[BlackElo "2645"]
[Result "0-1"]
[Round "08"]
[TimeControl "180+1"]
[Date "2022.03.08"]
[WhiteClock "0:00:01"]
[BlackClock "0:01:04"]

1. e4 {[%clk 0:03:00]}  c6 {[%clk 0:03:00]} 2. Nc3 {[%clk 0:03:01]}  d5 {[%clk 0:03:00]} 3. Nf3 {[%clk 0:03:00]}  dxe4 {[%clk 0:03:01]} 4. Nxe4 {[%clk 0:03:01]}  Nf6 {[%clk 0:03:02]} 5. Qe2 {[%clk 0:03:01]}  Nxe4 {[%clk 0:03:02]} 6. Qxe4 {[%clk 0:03:02]}  Qa5 {[%clk 0:03:03]} 7. b4 {[%clk 0:03:00]}  Qd5 {[%clk 0:03:02]} 8. Bd3 {[%clk 0:02:54]}  Qxe4+ {[%clk 0:02:48]} 9. Bxe4 {[%clk 0:02:55]}  Nd7 {[%clk 0:02:49]} 10. d4 {[%clk 0:02:36]}  Nf6 {[%clk 0:02:49]} 11. Bd3 {[%clk 0:02:37]}  e6 {[%clk 0:02:50]} 12. Rb1 {[%clk 0:02:33]}  Bd6 {[%clk 0:02:43]} 13. b5 {[%clk 0:02:33]}  cxb5 {[%clk 0:02:37]} 14. Bxb5+ {[%clk 0:02:29]}  Ke7 {[%clk 0:02:37]} 15. c4 {[%clk 0:02:28]}  b6 {[%clk 0:02:35]} 16. O-O {[%clk 0:01:41]}  Bb7 {[%clk 0:02:35]} 17. Re1 {[%clk 0:01:41]}  Be4 {[%clk 0:02:10]} 18. Rb3 {[%clk 0:01:36]}  Rhc8 {[%clk 0:02:03]} 19. Ne5 {[%clk 0:01:14]}  a6 {[%clk 0:01:47]} 20. Ba4 {[%clk 0:01:10]}  Bc2 {[%clk 0:01:47]} 21. c5 {[%clk 0:00:52]}  Bxe5 {[%clk 0:01:46]} 22. dxe5 {[%clk 0:00:48]}  Nd5 {[%clk 0:01:44]} 23. cxb6 {[%clk 0:00:23]}  Bxb3 {[%clk 0:01:42]} 24. Ba3+ {[%clk 0:00:20]}  Kd8 {[%clk 0:01:41]} 25. Bxb3 {[%clk 0:00:18]}  Nxb6 {[%clk 0:01:40]} 26. Rd1+ {[%clk 0:00:18]}  Nd5 {[%clk 0:01:40]} 27. Bxd5 {[%clk 0:00:16]}  exd5 {[%clk 0:01:41]} 28. Rxd5+ {[%clk 0:00:17]}  Ke8 {[%clk 0:01:41]} 29. g4 {[%clk 0:00:16]}  Rc2 {[%clk 0:01:40]} 30. Bd6 {[%clk 0:00:06]}  Rxa2 {[%clk 0:01:38]} 31. Rc5 {[%clk 0:00:06]}  Ra7 {[%clk 0:01:24]} 32. Kg2 {[%clk 0:00:02]}  Kd7 {[%clk 0:01:22]} 33. Kg3 {[%clk 0:00:02]}  a5 {[%clk 0:01:22]} 34. f4 {[%clk 0:00:02]}  a4 {[%clk 0:01:17]} 35. f5 {[%clk 0:00:02]}  a3 {[%clk 0:01:17]} 36. Rc3 {[%clk 0:00:03]}  Ra1 {[%clk 0:01:15]} 37. Rd3 {[%clk 0:00:02]}  Kc6 {[%clk 0:01:15]} 38. e6 {[%clk 0:00:02]}  fxe6 {[%clk 0:01:15]} 39. fxe6 {[%clk 0:00:02]}  a2 {[%clk 0:01:11]} 40. Be5 {[%clk 0:00:02]}  Re1 {[%clk 0:01:10]} 41. Rc3+ {[%clk 0:00:02]}  Kd5 {[%clk 0:01:09]} 42. Bxg7 {[%clk 0:00:01]}  a1=Q {[%clk 0:01:04]} 0-1


[Site "https://www.chess.com"]

[Event "Titled Tuesday Blitz March 08 Early 2022"]
[White "Matveeva, Olga"]
[Black "Van den Dikkenberg, Erik"]
[WhiteFideId "24107018"]
[BlackFideId "1005880"]
[WhiteElo "2083"]
[BlackElo "2118"]
[Result "1-0"]
[Round "08"]
[TimeControl "180+1"]
[Date "2022.03.09"]
[WhiteClock "0:00:12"]
[BlackClock "0:00:05"]

1. d4 {[%clk 0:03:00]}  Nf6 {[%clk 0:02:59]} 2. c4 {[%clk 0:03:00]}  g6 {[%clk 0:02:59]} 3. g3 {[%clk 0:02:59]}  Bg7 {[%clk 0:03:00]} 4. Bg2 {[%clk 0:02:59]}  O-O {[%clk 0:03:00]} 5. Nc3 {[%clk 0:03:00]}  d6 {[%clk 0:03:01]} 6. Nf3 {[%clk 0:03:00]}  c6 {[%clk 0:02:58]} 7. O-O {[%clk 0:03:00]}  Nbd7 {[%clk 0:02:58]} 8. h3 {[%clk 0:03:01]}  Re8 {[%clk 0:02:58]} 9. e4 {[%clk 0:03:00]}  e5 {[%clk 0:02:57]} 10. Be3 {[%clk 0:02:58]}  Qe7 {[%clk 0:02:55]} 11. Qc2 {[%clk 0:02:56]}  a5 {[%clk 0:02:52]} 12. b3 {[%clk 0:02:54]}  exd4 {[%clk 0:02:23]} 13. Nxd4 {[%clk 0:02:51]}  Nc5 {[%clk 0:02:20]} 14. f3 {[%clk 0:02:17]}  Nh5 {[%clk 0:02:12]} 15. g4 {[%clk 0:02:11]}  Nf4 {[%clk 0:01:39]} 16. Bxf4 {[%clk 0:02:05]}  Bxd4+ {[%clk 0:01:39]} 17. Kh2 {[%clk 0:02:05]}  Ne6 {[%clk 0:01:33]} 18. Bg3 {[%clk 0:02:04]}  Bg7 {[%clk 0:01:22]} 19. Rad1 {[%clk 0:02:03]}  Nd4 {[%clk 0:01:21]} 20. Qd2 {[%clk 0:01:59]}  c5 {[%clk 0:01:20]} 21. Nd5 {[%clk 0:01:58]}  Qd8 {[%clk 0:01:15]} 22. f4 {[%clk 0:01:53]}  Be6 {[%clk 0:01:14]} 23. f5 {[%clk 0:01:51]}  Bxd5 {[%clk 0:01:14]} 24. cxd5 {[%clk 0:01:41]}  Be5 {[%clk 0:01:13]} 25. Qh6 {[%clk 0:01:12]}  Bxg3+ {[%clk 0:00:47]} 26. Kxg3 {[%clk 0:01:12]}  Re5 {[%clk 0:00:46]} 27. f6 {[%clk 0:01:03]}  Qf8 {[%clk 0:00:45]} 28. Qd2 {[%clk 0:00:59]}  b6 {[%clk 0:00:44]} 29. Kh2 {[%clk 0:00:54]}  Rae8 {[%clk 0:00:44]} 30. h4 {[%clk 0:00:50]}  h5 {[%clk 0:00:43]} 31. g5 {[%clk 0:00:47]}  Rb8 {[%clk 0:00:38]} 32. Qf2 {[%clk 0:00:45]}  Qc8 {[%clk 0:00:37]} 33. Bh3 {[%clk 0:00:42]}  Qe8 {[%clk 0:00:34]} 34. Bg2 {[%clk 0:00:41]}  Qd7 {[%clk 0:00:33]} 35. Qf4 {[%clk 0:00:39]}  Rbe8 {[%clk 0:00:29]} 36. Rfe1 {[%clk 0:00:33]}  Qb5 {[%clk 0:00:29]} 37. Rd2 {[%clk 0:00:31]}  Qb4 {[%clk 0:00:27]} 38. Red1 {[%clk 0:00:29]}  Qc3 {[%clk 0:00:25]} 39. Qg3 {[%clk 0:00:26]}  Qb4 {[%clk 0:00:18]} 40. Qf4 {[%clk 0:00:24]}  Qb5 {[%clk 0:00:17]} 41. Qg3 {[%clk 0:00:23]}  Qd7 {[%clk 0:00:17]} 42. Bh3 {[%clk 0:00:23]}  Qb5 {[%clk 0:00:16]} 43. Bg2 {[%clk 0:00:22]}  Qb4 {[%clk 0:00:16]} 44. Qh3 {[%clk 0:00:22]}  Qb5 {[%clk 0:00:15]} 45. Rd3 {[%clk 0:00:20]}  a4 {[%clk 0:00:15]} 46. bxa4 {[%clk 0:00:19]}  Qxa4 {[%clk 0:00:15]} 47. a3 {[%clk 0:00:18]}  Qc4 {[%clk 0:00:15]} 48. Rc3 {[%clk 0:00:16]}  Qe2 {[%clk 0:00:15]} 49. Rdc1 {[%clk 0:00:15]}  Rxe4 {[%clk 0:00:13]} 50. Kh1 {[%clk 0:00:14]}  Re3 {[%clk 0:00:12]} 51. Rxe3 {[%clk 0:00:13]}  Rxe3 {[%clk 0:00:11]} 52. Qc8+ {[%clk 0:00:12]}  Kh7 {[%clk 0:00:11]} 53. Qf8 {[%clk 0:00:13]}  Qg4 {[%clk 0:00:05]} 54. Qg7# {[%clk 0:00:12]} 1-0


[Site "https://www.chess.com"]

[Event "Titled Tuesday Blitz March 08 Early 2022"]
[White "Miszler, Levente"]
[Black "Johnson, Ben"]
[WhiteFideId "763276"]
[BlackFideId "2010917"]
[WhiteElo "1966"]
[BlackElo "2206"]
[Result "0-1"]
[Round "08"]
[TimeControl "180+1"]
[Date "2022.03.09"]
[WhiteClock "0:01:10"]
[BlackClock "0:00:12"]

1. Nf3 {[%clk 0:02:50]}  d5 {[%clk 0:02:59]} 2. g3 {[%clk 0:02:50]}  Nf6 {[%clk 0:02:58]} 3. Bg2 {[%clk 0:02:51]}  Bg4 {[%clk 0:02:58]} 4. O-O {[%clk 0:02:51]}  c6 {[%clk 0:02:56]} 5. d3 {[%clk 0:02:51]}  Nbd7 {[%clk 0:02:54]} 6. Nbd2 {[%clk 0:02:51]}  e6 {[%clk 0:02:43]} 7. e4 {[%clk 0:02:51]}  Qc7 {[%clk 0:02:24]} 8. h3 {[%clk 0:02:50]}  Bh5 {[%clk 0:02:16]} 9. Re1 {[%clk 0:02:42]}  dxe4 {[%clk 0:02:02]} 10. dxe4 {[%clk 0:02:41]}  O-O-O {[%clk 0:01:53]} 11. c3 {[%clk 0:02:41]}  Kb8 {[%clk 0:01:48]} 12. Qc2 {[%clk 0:02:35]}  e5 {[%clk 0:01:35]} 13. b4 {[%clk 0:02:35]}  Bd6 {[%clk 0:01:22]} 14. a4 {[%clk 0:02:34]}  Nf8 {[%clk 0:01:21]} 15. Qb3 {[%clk 0:02:30]}  Ne6 {[%clk 0:01:20]} 16. Bb2 {[%clk 0:02:24]}  Nd7 {[%clk 0:01:08]} 17. Nc4 {[%clk 0:02:13]}  Be7 {[%clk 0:00:57]} 18. Rad1 {[%clk 0:02:01]}  h6 {[%clk 0:00:47]} 19. Rxd7 {[%clk 0:01:56]}  Rxd7 {[%clk 0:00:44]} 20. Nfxe5 {[%clk 0:01:57]}  Rdd8 {[%clk 0:00:40]} 21. b5 {[%clk 0:01:56]}  Bf6 {[%clk 0:00:34]} 22. Nf3 {[%clk 0:01:44]}  Nc5 {[%clk 0:00:29]} 23. Qb4 {[%clk 0:01:43]}  Nd3 {[%clk 0:00:29]} 24. Qb3 {[%clk 0:01:34]}  Bxf3 {[%clk 0:00:28]} 25. Ra1 {[%clk 0:01:31]}  Bxg2 {[%clk 0:00:27]} 26. Kxg2 {[%clk 0:01:32]}  Nxb2 {[%clk 0:00:25]} 27. Qxb2 {[%clk 0:01:27]}  cxb5 {[%clk 0:00:24]} 28. Qxb5 {[%clk 0:01:25]}  Rc8 {[%clk 0:00:21]} 29. Na5 {[%clk 0:01:25]}  Qb6 {[%clk 0:00:20]} 30. Qf5 {[%clk 0:01:17]}  Rc5 {[%clk 0:00:16]} 31. Qf4+ {[%clk 0:01:15]}  Qc7 {[%clk 0:00:14]} 32. Rb1 {[%clk 0:01:11]}  Qxf4 {[%clk 0:00:13]} 33. Nxb7 {[%clk 0:01:10]}  Qxe4+ {[%clk 0:00:12]} 34. Kg1 {[%clk 0:01:10]}  Qxb7 {[%clk 0:00:12]} 0-1


[Site "https://www.chess.com"]